Cogmind - Beta 16 *** ADVENTURER MODE // 2025.12.23 @ 22:24:21 Player: Gentle Jesus Result: Destroyed by S-43 Plague with Heavy Machine Gun Performance ------------- Evolutions (9) 4500 Regions Visited (26) 5200 Robots Destroyed (277) 1385 Value Destroyed (16056) 16056 Prototype IDs (53) 1060 Alien Tech Used (6) 1200 Bonus (28864) 28864 TOTAL SCORE: 58265 Bonus ------- High Alert Combat Kills 3851 Follower Combat Kills 32 Met Data Miner 300 Met Zhirov 300 Met Warlord at Base 500 MAIN.C Attacked Warlord 500 Found Hidden Lab 3000 Used Core Reset Matrix 3000 Met Warlord at Research 2000 Invited to Help at Command 2000 Pursued by Intercept 1000 Destroyed MAIN.C Guards 500 Met MAIN.C 5000 Destroyed MAIN.C Shell 5000 Met Warlord at Command 2000 Friendly Fire -119 Cogmind --------- Core Integrity 0/1600 Matter 180/550 Energy 421/950 System Corruption 32% Temperature Cool (0) Movement Core (450) Ox8 Location -1/Command Parts ------- > --- POWER (2) -------- Quantum Reactor > --- PROPULSION (6) --- (None) > --- UTILITY (13) ----- Experimental Coolant Injector Experimental Energy Well Matter Compressor Improved Signal Interpreter Advanced Signal Interpreter Advanced Terrain Scan Processor Experimental Targeting Computer Advanced System Shield > --- WEAPON (5) ------- (None) > --- INVENTORY (5) ---- (None) Peak State ------------ > --- POWER ------------ Light Quantum Reactor Light Quantum Reactor > --- PROPULSION ------- Centrium Leg Centrium Leg Centrium Leg Centrium Leg Heavy Shield Leg > --- UTILITY ---------- Advanced Heat Sink Advanced Heat Sink Large Storage Unit Energy Well Matter Compressor Improved Signal Interpreter Experimental Targeting Computer Medium Regenerative Plating LC Capacitor > --- WEAPON ----------- Vortex Driver Hypervelocity Railgun Enhanced Hardcell Cannon Compact Linear Accelerator Ragnarok Missile Launcher > --- INVENTORY -------- Particle Reactor Light Quantum Reactor Light Quantum Reactor Centrium Leg Centrium Leg Heavy Shield Leg Structural Scanner Improved Sensor Array Heavy Regenerative Plating Transdimensional Reconstructor Cooled Phase Cannon Potential Cannon [Rating: 209] Favorites ----------- Power Light Quantum Reactor Engine Light Deuterium Engine Power Core Light Neutrino Core Reactor Light Quantum Reactor Propulsion Centrium Leg Leg Centrium Leg Wheel Armored Huge Wheel Hover Unit Improved Gyrokinetic Inverter Utility Advanced Heat Sink Device Advanced Heat Sink Storage Large Storage Unit Processor Improved Signal Interpreter Hackware Advanced System Shield Protection Improved Light Armor Plating Artifact LC Capacitor Weapon KE Penetrator Energy Gun Lightning Gun Energy Cannon Cooled Phase Cannon Ballistic Gun KE Penetrator Ballistic Cannon Enhanced Hardcell Cannon Launcher Ragnarok Missile Launcher Special Weapon RU-N14's Throwing Claymores v3 Slashing Weapon Ionic Axe Build | -11 -10 -10 -10 -8 -7 -6 -6 -6 -6 -5 -5 -5 -5 -5 -4 -4 -4 -4 -4 -3 -3 -3 -3 -2 -1 -1 ------- Run | Yrd Mat Min Sub Mat Fac Fac Low Low Dat Pro Fac Upp Upp Zhi Pro Fac Upp Upp War Pro Res Arm Lab Res Acc Com Slots Evolved 18 | . . . . 4 2 2 . . . . 2 . . . . 2 . . . . 2 . . 2 2 . Power 1 | . . . . . 1 . . . . . . . . . . . . . . . . . . . . . Propulsion 4 | . . . . 2 . . . . . . . . . . . . . . . . 1 . . 1 . . Utility 10 | . . . . 2 . 2 . . . . 2 . . . . 1 . . . . . . . 1 2 . Weapon 3 | . . . . . 1 . . . . . . . . . . 1 . . . . 1 . . . . . Parts Attached 265 | 7 3 . 12 15 5 7 1 . . 8 7 4 2 1 3 7 6 3 10 3 5 8 5 57 56 30 Power 30 | 1 . . 3 1 1 1 1 . . 1 2 1 . 1 . . 1 . 1 . . 1 . 7 4 3 Engine 8 | 1 . . 3 1 1 . 1 . . . 1 . . . . . . . . . . . . . . . Core 4 | . . . . . . 1 . . . 1 1 1 . . . . . . . . . . . . . . Reactor 18 | . . . . . . . . . . . . . . 1 . . 1 . 1 . . 1 . 7 4 3 Propulsion 78 | 2 . . 4 4 . 1 . . . . . 2 2 . . 1 1 2 2 1 4 4 . 15 21 12 Treads . | . . . . . . . . . . . . . . . . . . . . . . . . . . . Leg 40 | . . . 1 . . . . . . . . . . . . . . . 2 1 3 4 . 15 7 7 Wheel 19 | 2 . . 3 4 . 1 . . . . . 2 2 . . 1 1 2 . . 1 . . . . . Hover 19 | . . . . . . . . . . . . . . . . . . . . . . . . . 14 5 Flight . | . . . . . . . . . . . . . . . . . . . . . . . . . . . Utility 81 | 2 1 . 2 4 2 3 . . . 3 4 1 . . 2 3 2 1 1 2 . 1 3 15 20 9 Device 36 | 1 . . 1 . . 1 . . . 1 3 . . . 1 1 1 1 . 2 . 1 . 6 10 6 Storage 11 | 1 1 . . 1 . . . . . . . . . . . 1 . . . . . . . 5 1 1 Processor 9 | . . . . 2 . . . . . . 1 . . . . 1 . . 1 . . . . . 4 . Hackware 2 | . . . . 1 . . . . . . . . . . . . . . . . . . . . 1 . Protection 22 | . . . 1 . 2 2 . . . 2 . 1 . . 1 . 1 . . . . . 2 4 4 2 Artifact 1 | . . . . . . . . . . . . . . . . . . . . . . . 1 . . . Weapon 76 | 2 2 . 3 6 2 2 . . . 4 1 . . . 1 3 2 . 6 . 1 2 2 20 11 6 Energy Gun 20 | . . . 1 3 1 . . . . 3 . . . . . 1 . . 3 . 1 . 1 2 2 2 Energy Cannon 16 | . . . . 1 . 2 . . . . . . . . 1 1 . . 1 . . . 1 6 3 . Ballistic Gun 17 | 2 2 . 2 1 . . . . . . . . . . . 1 1 . . . . 2 . 3 3 . Ballistic Cannon 13 | . . . . . . . . . . . 1 . . . . . 1 . . . . . . 7 2 2 Launcher 7 | . . . . 1 1 . . . . 1 . . . . . . . . . . . . . 2 . 2 Special Weapon 2 | . . . . . . . . . . . . . . . . . . . 2 . . . . . . . Impact Weapon . | . . . . . . . . . . . . . . . . . . . . . . . . . . . Slashing Weapon 1 | . . . . . . . . . . . . . . . . . . . . . . . . . 1 . Piercing Weapon . | . . . . . . . . . . . . . . . . . . . . . . . . . . . Special Melee Weapon . | . . . . . . . . . . . . . . . . . . . . . . . . . . . Unidentified Prototypes 40 | . . . . 2 . 2 . . . . 1 . . 2 1 . . . 7 . 1 1 6 6 4 7 Corrupted Parts 2 | . . . . . . . . . . . . . . . . . 2 . . . . . . . . . System Corruption 4 | . . . . . . . . . . . . . . . . . 4 . . . . . . . . . Parts Lost 125 | . . . 10 . . 1 . . . 11 1 4 1 . 6 3 7 . . 3 2 3 . 22 24 27 Power 19 | . . . 3 . . 1 . . . 2 . 1 . . . . 1 . . . . 1 . 3 3 4 Propulsion 29 | . . . 3 . . . . . . . 1 1 1 . 2 . 2 . . 1 1 . . 2 9 6 Utility 44 | . . . 1 . . . . . . 3 . 2 . . 2 2 2 . . 1 1 1 . 9 9 11 Weapon 33 | . . . 3 . . . . . . 6 . . . . 2 1 2 . . 1 . 1 . 8 3 6 Highest Loss Streak 16 | . . . 3 . . 1 . . . 6 1 2 1 . 3 3 5 . . 2 1 3 . 9 14 16 To Critical Strikes 4 | . . . . . . . . . . . . 1 . . . . . . . . . 1 . 2 . . Average Backups 10 | 1 3 4 4 7 12 11 14 14 14 10 12 11 11 13 13 13 10 10 11 10 13 13 11 11 7 10 Power 2 | . 1 1 1 . 1 . . . . . . . 1 1 2 3 2 2 2 2 3 2 2 2 3 3 Propulsion 1 | . 1 1 . 1 2 1 2 2 2 2 3 2 . . . . . 1 . . . 2 3 2 . 4 Utility 3 | . . 1 1 2 6 5 8 8 8 5 6 6 5 6 5 6 5 5 4 3 3 3 3 2 1 1 Weapon 2 | . 1 1 . 3 3 3 3 4 4 1 1 1 4 4 3 2 . . 3 4 4 4 1 1 1 1 Tool/Special . | . . . . . . . . . . . . . . . . . . . . . . . . . . . Unused Backups 25 | . . . . 1 4 . . . . . 1 . . 1 . 2 . . 3 . . 2 . 8 . 3 Power 5 | . . . . . . . . . . . . . . . . . . . . . . 1 . 3 . 1 Propulsion 6 | . . . . 1 . . . . . . . . . . . . . . 1 . . 1 . 2 . 1 Utility 8 | . . . . . 4 . . . . . 1 . . . . . . . 1 . . . . 1 . 1 Weapon 4 | . . . . . . . . . . . . . . 1 . 2 . . . . . . . 1 . . Tool/Special 2 | . . . . . . . . . . . . . . . . . . . 1 . . . . 1 . . Average Slot Usage (%) 85 | . 100 100 93 86 83 85 86 86 86 76 84 92 92 93 84 76 76 83 92 92 70 80 84 87 82 85 Engine 3 | . 14 14 13 9 14 10 6 6 6 6 7 1 . . . . . . . . . . . . . . Core 1 | . . . . . . 2 6 6 6 2 3 9 11 9 5 5 1 . . . . 1 4 . . . Reactor 4 | . . . . . . . . . . . . . . 1 5 5 8 10 8 5 4 4 4 7 6 6 Leg 8 | . . . 4 . . . . . . . . . . . . . . . 2 11 16 23 22 21 11 8 Wheel 8 | . 28 28 21 29 15 13 13 13 13 13 11 15 15 17 9 7 6 9 13 7 1 . . . . . Hover 1 | . . . . . . . . . . . . . . . . . . . . . . . . . 8 8 Device 13 | . 14 14 9 . . 6 6 6 6 12 16 17 17 16 18 20 20 21 21 21 23 22 14 9 16 10 Storage 9 | . 14 14 10 9 7 6 6 6 6 6 5 5 5 5 5 5 10 10 10 10 9 9 9 12 11 11 Processor 9 | . . . . 7 15 13 13 13 13 6 10 11 11 11 11 10 10 10 10 10 9 9 9 8 12 18 Protection 5 | . . . 3 5 6 12 13 13 13 13 11 10 11 11 9 4 2 5 5 4 . . 3 5 2 2 Energy Gun 4 | . . . 8 10 15 9 6 6 6 7 11 11 11 11 5 8 1 . 2 2 4 4 1 . 1 . Energy Cannon 2 | . . . . 2 1 3 6 6 6 4 . . . . 3 2 . . . . . . 5 5 1 . Ballistic Gun 4 | . 28 28 19 4 . . . . . . . . . . . 2 9 10 9 10 . 2 6 4 2 . Ballistic Cannon 2 | . . . . . . . . . . . 2 5 5 5 5 2 3 5 2 4 . . . 5 1 7 Launcher 1 | . . . . . 4 6 6 6 6 . . . . . . . . . . . . . . 2 . 2 Peak Build Rating 209 | 7 9 9 13 39 48 54 55 55 55 57 72 68 68 72 76 79 83 72 112 113 144 148 178 209 175 177 Average Rating 103 | 5 8 9 9 27 46 51 54 55 55 50 66 65 65 69 72 73 69 70 86 109 131 137 140 188 142 160 On Entrance 71 | . 7 9 9 13 39 48 52 55 55 55 49 64 60 68 72 67 74 69 72 110 113 143 125 178 162 163 Avg Prop Armor Cover (%) 5 | . . . 5 . . . . . . . . . . . . . 3 . 7 6 2 . . . 4 4 Naked Turns . | . . . . . . . . . . . . . . . . . . . . . . . . . . . Heaviest Build 159 | 11 30 30 30 51 50 56 54 54 54 71 68 68 63 76 79 79 84 84 103 99 99 90 118 159 128 111 Greatest Support 180 | 26 26 26 40 80 56 56 56 56 56 56 56 48 48 48 48 44 44 36 36 75 141 148 148 180 180 161 Greatest Overweight (x) 8 | . 1 1 2 1 . . . . . 1 2 3 3 1 2 2 8 8 4 4 1 . . . 6 5 Average Overweight (x) . | . . 1 1 . . . . . . . . 1 1 1 1 1 5 3 2 3 . . . . . . Largest Inventory Capacity 15 | 8 15 15 15 15 15 15 15 15 15 15 15 15 15 15 15 15 15 15 15 15 15 15 15 15 15 15 Average Capacity 14 | 7 10 15 12 11 15 15 15 15 15 15 15 15 15 15 15 15 15 15 15 15 15 15 15 15 15 14 Most Carried 15 | 3 4 6 8 15 15 15 15 15 15 15 15 14 13 15 15 15 14 11 15 15 14 15 15 15 15 15 Average Carried 11 | 1 3 4 4 8 14 12 14 15 15 11 13 12 12 13 13 13 10 10 13 14 13 13 12 13 8 11 Final Capacity 15 | 8 15 15 5 15 15 15 15 15 15 15 15 15 15 15 15 15 15 15 15 15 15 15 15 15 15 5 Final Carried 15 | 3 4 6 3 15 15 15 15 15 15 12 15 13 13 15 15 15 10 11 15 14 13 10 15 6 8 . Class Distribution -------------------- 16% | Skirmisher 14% | Scavenger-Skirmisher 12% | Alien-Skirmisher 10% | Gunner 9% | Scavenger-Tank 7% | Mutant 7% | Scavenger-Mutant 5% | Scavenger-Gunner 5% | Alien-Gunner 3% | Subdweller-Mutant 3% | Alien-Mutant Dominant Class ---------------- Mutant | -10/Materials Mutant | -10/Mines Mutant | -10/Subcaves Subdweller-Mutant | -8/Materials Gunner | -7/Factory Gunner | -6/Factory Gunner | -6/Lower Caves Gunner | -6/Lower Caves Gunner | -6/Data Miner Mutant | -5/Proximity Caves Scavenger-Tank | -5/Factory Scavenger-Tank | -5/Upper Caves Scavenger-Tank | -5/Upper Caves Scavenger-Tank | -5/Zhirov Skirmisher | -4/Proximity Caves Skirmisher | -4/Factory Skirmisher | -4/Upper Caves Scavenger-Skirmisher | -4/Upper Caves Scavenger-Skirmisher | -4/Warlord Scavenger-Skirmisher | -3/Proximity Caves Skirmisher | -3/Research Skirmisher | -3/Armory Alien-Skirmisher | -3/Lab Alien-Skirmisher | -2/Research Alien-Mutant | -1/Access Scavenger-Gunner | -1/Command Resources | -11 -10 -10 -10 -8 -7 -6 -6 -6 -6 -5 -5 -5 -5 -5 -4 -4 -4 -4 -4 -3 -3 -3 -3 -2 -1 -1 ----------- Run | Yrd Mat Min Sub Mat Fac Fac Low Low Dat Pro Fac Upp Upp Zhi Pro Fac Upp Upp War Pro Res Arm Lab Res Acc Com Matter Collected 9169 | 259 . 77 248 220 164 83 44 14 . 176 139 223 78 . 254 97 531 256 . 425 164 126 1 4101 820 669 Remotely 29 | . . . . . . . . . . . . . . . . . . . . . . . . . . 29 Salvage Created 12956 | 21 . 101 532 355 546 508 . 44 . 652 200 295 155 . 566 453 404 356 . 484 2028 244 1 2453 1956 602 Parts 505 | 5 . 2 42 26 29 35 . 1 . 28 14 11 2 . 14 14 14 9 . 14 90 10 . 74 67 4 Haulers Intercepted 3 | . . . . 1 . . . . . . . . . . . 1 . . . . 1 . . . . . Recyclers Shooed 8 | . . . . . . 5 . . . . . . . . . 1 . . . . . . . . . 2 Parts Field Recycled . | . . . . . . . . . . . . . . . . . . . . . . . . . . . Retrieved Matter . | . . . . . . . . . . . . . . . . . . . . . . . . . . . Parts Self-Destructed 92 | . . . 16 . . . . . . 15 . 5 2 . 8 . 30 4 . 12 . . . . . . Prevented 20 | . . . . . . . . 2 . 10 . 2 . . 6 . . . . . . . . . . . Parts Restored . | . . . . . . . . . . . . . . . . . . . . . . . . . . . Kills | -11 -10 -10 -10 -8 -7 -6 -6 -6 -6 -5 -5 -5 -5 -5 -4 -4 -4 -4 -4 -3 -3 -3 -3 -2 -1 -1 ------- Run | Yrd Mat Min Sub Mat Fac Fac Low Low Dat Pro Fac Upp Upp Zhi Pro Fac Upp Upp War Pro Res Arm Lab Res Acc Com Combat Hostiles Destroyed 217 | . . 2 16 8 10 6 . 3 . 13 1 5 3 . 8 2 3 1 . 14 17 3 1 64 34 3 Guns 62 | . . 2 16 5 4 1 . 1 . 5 . 2 1 . 3 1 3 . . 8 . 1 . 6 3 . Cannons 77 | . . . . 1 . 1 . . . 3 . 3 2 . 5 1 . 1 . 3 . . 1 37 16 3 AOE 69 | . . . . 2 4 3 . 2 . 5 . . . . . . . . . 3 16 2 . 18 14 . Classes Destroyed 24 | 1 . 1 3 5 . 1 . . . 2 . 1 1 . 1 . 1 . . 1 . . . 5 1 . Worker 12 | . . . . 1 1 . . . . . 5 . . . . . . . . . 5 . . . . . Builder 16 | . . . . 1 1 2 . . . . . . . . . 2 . . . . 8 . . . 2 . Tunneler 4 | 2 . . . . . . . . . . . . . . . . . . . . 2 . . . . . Hauler 3 | . . . . 1 . . . . . . . . . . . 1 . . . . 1 . . . . . Recycler 9 | . . . . . . 2 . . . . . . . . . 1 . . . . 4 . . . 1 1 Minesweeper 2 | . . . . . . . . . . . . . . . 1 . . 1 . . . . . . . . Mechanic 1 | . . . . . . . . . . . . . . . . . . . . . . . . . 1 . Operator 1 | . . . . . . . . . . . . . . . . . . . . . . . . 1 . . Drone 1 | . . . . . . . . . . . . . . . . . . . . 1 . . . . . . Watcher 12 | . . . . 1 2 1 . . . . 1 . . . . . . . . . 4 . . 2 1 . Swarmer 47 | . . . 4 4 3 3 . 3 . . . . . . . . . . . 4 5 . . 13 7 1 Grunt 52 | . . 2 3 1 4 . . . . 9 . 3 . . 1 . . 1 . 5 4 . . 10 9 . Brawler 1 | . . . . . . . . . . . . . . . . . . . . . . . . 1 . . Duelist 3 | . . . . . . . . . . . . . 2 . . . . . . . . . . 1 . . Sentry 14 | . . . 1 2 3 2 . . . . . . 1 . . . . . . 1 . 1 . 2 1 . Demolisher 1 | . . . . . . . . . . . . . . . . . . . . . . . . 1 . . Hunter 38 | . . . . 1 . 1 . . . . 1 1 . . 6 2 2 . . 2 5 2 . 10 5 . Programmer 14 | . . . . . . . . . . 3 . . . . . . . . . 1 3 . . 3 4 . Behemoth 5 | . . . . . . . . . . 1 . . . . 1 . 1 . . . . . . 2 . . Tracker 9 | . . . . . . . . . . . . . . . . . . . . . . . . 5 4 . Combat Programmer 7 | . . . . . . . . . . . . . . . . . . . . . . . . 2 4 1 Striker 8 | . . . . . . . . . . . . . . . . . . . . . . . . 8 . . Executioner 6 | . . . . . . . . . . . . . . . . . . . . . . . . 6 . . Subdweller 8 | . . . 8 . . . . . . . . . . . . . . . . . . . . . . . Decomposer 5 | . . . . . . . . . . . . . . . . . . 5 . . . . . . . . Packrat 2 | . . . . . . . . . . . . . . . . . . 2 . . . . . . . . Samaritan 1 | . . . . . . . . . . . . . . . . . 1 . . . . . . . . . Mutant 1 | . . . . . . . . . . . . 1 . . . . . . . . . . . . . . Best Kill Streak 14 | 2 . 2 3 3 4 5 . 3 . 5 4 4 3 . 3 2 2 2 . 4 14 2 1 6 7 1 Combat Bots Only 6 | . . 2 3 2 3 4 . 3 . 5 1 4 3 . 3 2 2 1 . 4 6 2 1 6 6 1 Max Kills in Single Turn 5 | 2 . 1 1 3 2 3 . 2 . 3 2 1 1 . 1 2 1 1 . 2 5 1 1 3 4 1 Gunslinging . | . . . . . . . . . . . . . . . . . . . . . . . . . . . Exploded 3 | . . . . 1 2 2 . 2 . 3 . . . . . . . . . 2 3 1 . 3 3 . Melee . | . . . . . . . . . . . . . . . . . . . . . . . . . . . Uniques/NPCs Destroyed 2 | . . . . . . . . . . . . . . . . . . . . . . . 1 . . 1 A5 (-3/Lab) MAIN.C Shell (-1/Command) Combat | -11 -10 -10 -10 -8 -7 -6 -6 -6 -6 -5 -5 -5 -5 -5 -4 -4 -4 -4 -4 -3 -3 -3 -3 -2 -1 -1 -------- Run | Yrd Mat Min Sub Mat Fac Fac Low Low Dat Pro Fac Upp Upp Zhi Pro Fac Upp Upp War Pro Res Arm Lab Res Acc Com Hostile Shots Fired 2191 | . . 8 91 36 59 55 . 4 . 147 15 27 4 . 117 39 49 2 . 115 109 32 10 691 369 212 Missed 683 | . . 2 27 9 30 25 . 1 . 44 3 10 . . 45 11 16 . . 51 52 12 5 170 102 68 Hits 1508 | . . 6 64 27 29 30 . 3 . 103 12 17 4 . 72 28 33 2 . 64 57 20 5 521 267 144 Melee 9 | . . . . . . . . . . . . . . . . . . . . . . . . 7 2 . Projectile 1499 | . . 6 64 27 29 30 . 3 . 103 12 17 4 . 72 28 33 2 . 64 57 20 5 514 265 144 AOE 42 | . . . 7 . . . . . . . . . . . . . . . . . . . . 13 2 20 Critical Strikes 78 | . . . 2 . . . . . . 9 . 2 . . 1 1 . . . 3 3 1 . 26 23 7 Actively Blocked 1 | . . . . . . . . . . 1 . . . . . . . . . . . . . . . . Part Disruptions 13 | . . . . . . . . . . . . . . . . . . . . . . . . . . 13 Actively Blocked 2 | . . . . . . . . . . . . . . . . . . . . . . . . . . 2 Damage Taken 28910 | . . 71 1132 275 253 252 . 41 . 1588 163 297 73 . 1120 396 554 28 . 1002 1269 345 97 10907 4891 4156 Core 3699 | . . . 216 16 8 71 . 23 . 80 14 73 . . 134 41 42 . . 108 94 39 . 1129 595 1016 Absorbed by Shields 1471 | . . . . . . . . . . . . . . . . . . . . . . . . . . 1471 Redirected to Shielding 337 | . . . . . . 1 . . . 49 . . . . 118 49 . . . . . . . 81 . 39 Ignored by Resistances 9022 | . . 21 308 86 82 76 . 12 . 656 45 81 20 . 308 108 155 9 . 285 357 99 26 2935 1867 1486 Regen/Repaired (Parts) 1583 | . . . . . . . . . . . . . . . . . . . 98 . . . 53 1432 . . Core Remaining (%) 72 | 100 . . 13 97 98 . . . . 79 . . . . 77 . . . . 83 . . 84 18 . . Volleys Fired 637 | 3 . 5 62 21 24 24 3 2 . 38 16 11 9 . 32 14 17 10 8 30 19 16 10 131 93 39 Largest 5 | 2 . 2 2 2 3 3 2 2 . 3 3 3 3 . 3 4 4 3 2 4 1 3 4 5 4 4 Hottest 498 | 40 . 46 60 123 165 129 90 90 . 165 177 177 177 . 203 265 196 122 100 206 300 300 220 498 355 232 Shots Fired 1593 | 6 . 10 120 42 44 45 6 3 . 75 30 30 27 . 90 46 52 32 9 99 19 21 25 476 187 99 Gun 744 | 6 . 10 120 33 37 25 3 1 . 38 19 19 18 . 35 37 38 20 3 78 19 21 19 64 77 4 Cannon 771 | . . . . 7 . 17 3 1 . 29 11 11 9 . 55 9 14 12 3 19 . . 6 379 110 76 Launcher 73 | . . . . 2 7 3 . 1 . 8 . . . . . . . . . . . . . 33 . 19 Special 5 | . . . . . . . . . . . . . . . . . . . 3 2 . . . . . . Kinetic 816 | 6 . 10 84 8 . . . . . . 11 11 9 . 32 14 48 32 . 70 . 6 11 298 91 75 Thermal 408 | . . . 36 15 . 17 3 1 . 29 9 8 9 . 31 14 3 . . . 19 6 . 118 85 5 Explosive 78 | . . . . 2 7 3 . 1 . 8 . . . . . . . . 3 2 . . . 33 . 19 Electromagnetic 208 | . . . . 17 37 25 3 1 . 38 10 11 9 . 27 18 1 . . . . . . . 11 . Entropic 83 | . . . . . . . . . . . . . . . . . . . 6 27 . 9 14 27 . . Robot Hit Streak 67 | 3 . 7 29 22 34 67 . 2 . 31 35 15 15 . 45 24 17 11 . 18 17 19 12 19 23 27 Robot Miss Streak 8 | 1 . 1 3 1 1 1 . . . 1 1 1 1 . 1 1 1 1 . 4 4 2 1 8 2 1 Penetration Max 1 | . . . . . . . . . . . . . 1 . . 1 1 1 . 1 . . . 1 1 1 Secondary Targets 6 | . . 1 3 . 1 . . . . . . . . . . . . . . 1 . . . . . . Max Gunslinging Chain 1 | . . 1 1 . 1 . . . . . . . . . . . . . . 1 . . . . . . Shots Hit Robots 1111 | 4 . 9 100 34 35 36 . 2 . 58 8 22 15 . 71 32 43 20 . 60 19 11 17 296 133 86 Core Hits 610 | 3 . 3 34 19 23 24 . 4 . 39 15 13 7 . 26 13 20 9 . 24 87 12 7 119 70 39 Critical Kills 18 | . . . . . . . . . . . . . . . . . 1 5 . 1 . . . 10 1 . Critical Parts Destroyed 23 | . . . . . . . . . . . . . . . . 1 5 . . 6 . 1 2 8 . . Critical Strikes 86 | . . . . 1 1 . . . . 1 1 . . . 3 3 7 5 . 9 . 1 4 45 2 3 Burn 2 | . . . . . . . . . . . . . . . . 2 . . . . . . . . . . Meltdown 4 | . . . . . . . . . . . . . . . . . . . . . . . . 3 1 . Destroy 45 | . . . . . . . . . . . . . . . . 1 7 5 . 7 . 1 3 21 . . Blast 23 | . . . . . . . . . . . 1 . . . 3 . . . . . . . . 15 1 3 Corrupt 3 | . . . . 1 1 . . . . 1 . . . . . . . . . . . . . . . . Sunder 9 | . . . . . . . . . . . . . . . . . . . . 2 . . 1 6 . . Melee Attacks 5 | . . . . . . . . . . . . . . . . . . . . . . . . . 4 1 Impact . | . . . . . . . . . . . . . . . . . . . . . . . . . . . Slashing 5 | . . . . . . . . . . . . . . . . . . . . . . . . . 4 1 Piercing . | . . . . . . . . . . . . . . . . . . . . . . . . . . . Sneak Attacks . | . . . . . . . . . . . . . . . . . . . . . . . . . . . Combat Hostiles . | . . . . . . . . . . . . . . . . . . . . . . . . . . . Follow-up Attacks . | . . . . . . . . . . . . . . . . . . . . . . . . . . . Damage Inflicted 51673 | 43 . 146 1090 913 1234 1544 . 224 . 2049 449 554 417 . 1889 973 992 454 . 2802 4610 649 607 17831 8351 3852 Guns 10318 | 43 . 146 1090 495 630 468 . 16 . 445 150 304 194 . 637 603 805 368 . 1409 143 157 257 363 1460 135 Cannons 23173 | . . . . 123 . 414 . . . 649 67 250 223 . 1252 325 187 86 . 586 . . 350 11369 4804 2488 Explosions 18079 | . . . . 295 604 662 . 208 . 955 232 . . . . 45 . . . 704 4467 492 . 6099 2087 1229 Melee . | . . . . . . . . . . . . . . . . . . . . . . . . . . . Ramming . | . . . . . . . . . . . . . . . . . . . . . . . . . . . Kinetic 16108 | 43 . 146 750 57 . . . . . . 67 250 223 . 633 282 906 454 . 889 . 24 54 6681 2199 2450 Thermal 18644 | . . . 340 314 . 414 . . . 649 43 154 107 . 553 264 65 . . . 4610 528 . 4388 6042 173 Explosive 9991 | . . . . 238 604 662 . 208 . 955 . . . . . . . . . 704 . . . 5391 . 1229 Electromagnetic 3718 | . . . . 304 630 468 . 16 . 445 339 150 87 . 703 427 21 . . . . . . 18 110 . Impact . | . . . . . . . . . . . . . . . . . . . . . . . . . . . Slashing 103 | . . . . . . . . . . . . . . . . . . . . 103 . . . . . . Piercing . | . . . . . . . . . . . . . . . . . . . . . . . . . . . Entropic 3109 | . . . . . . . . . . . . . . . . . . . . 1106 . 97 553 1353 . . Highest Corruption 32 | . . . . . . . . . . 1 . . . . . . 4 4 4 . 5 5 6 18 22 32 Average Corruption 10 | . . . . . . . . . . 1 . . . . . . 3 4 4 . 1 5 5 8 16 23 Corruption Purged . | . . . . . . . . . . . . . . . . . . . . . . . . . . . Corruption Blocked . | . . . . . . . . . . . . . . . . . . . . . . . . . . . Effects 204 | . . . . . . . . . . 1 . . . . . . 12 13 1 . 4 13 2 55 48 55 Message Errors 63 | . . . . . . . . . . 1 . . . . . . 4 8 . . 2 6 1 9 13 19 Matter Fused 40 | . . . . . . . . . . . . . . . . . 6 . . . 1 . . 16 9 8 Heat Flow Errors 20 | . . . . . . . . . . . . . . . . . 1 1 . . 1 2 . 6 5 4 Energy Discharges 20 | . . . . . . . . . . . . . . . . . 1 1 . . . 3 . 4 4 7 Parts Rejected 4 | . . . . . . . . . . . . . . . . . . . . . . . . 1 2 1 Data Loss (minor) 20 | . . . . . . . . . . . . . . . . . . 1 1 . . 1 1 7 5 4 Data Loss (major) 10 | . . . . . . . . . . . . . . . . . . . . . . . . 2 6 2 Misfires 8 | . . . . . . . . . . . . . . . . . . 2 . . . . . 3 . 3 Alerts 3 | . . . . . . . . . . . . . . . . . . . . . . . . 1 2 . Misdirections 5 | . . . . . . . . . . . . . . . . . . . . . . . . 2 . 3 Weapon Failures 11 | . . . . . . . . . . . . . . . . . . . . . . 1 . 4 2 4 Overload Shots 2 | . . . . . . 2 . . . . . . . . . . . . . . . . . . . . Effects 1 | . . . . . . 1 . . . . . . . . . . . . . . . . . . . . Short Circuit 1 | . . . . . . 1 . . . . . . . . . . . . . . . . . . . . Overflow Damage 2006 | . . . . 20 28 41 . . . 16 . . . . 15 15 14 6 . 82 100 22 . 895 734 18 Projectiles 1418 | . . . . . . 13 . . . 15 . . . . 15 . 14 6 . 37 . . . 641 659 18 Explosions 588 | . . . . 20 28 28 . . . 1 . . . . . 15 . . . 45 100 22 . 254 75 . Melee . | . . . . . . . . . . . . . . . . . . . . . . . . . . . Knockbacks 71 | . . . . . . . . . . . . . 1 . 2 . . . . 2 . . . 46 17 3 Impact . | . . . . . . . . . . . . . . . . . . . . . . . . . . . Kinetic 69 | . . . . . . . . . . . . . 1 . 2 . . . . 2 . . . 45 16 3 Secondary 2 | . . . . . . . . . . . . . . . . . . . . . . . . 1 1 . Self-Inflicted Damage 1006 | . . . . 20 32 33 . 7 . 6 . . . . . 28 . . . . 493 50 . 71 161 105 Shots 47 | . . . . 1 1 1 . 1 . 1 . . . . . 1 . . . . 28 3 . 1 4 5 Rammed . | . . . . . . . . . . . . . . . . . . . . . . . . . . . Targets Rammed . | . . . . . . . . . . . . . . . . . . . . . . . . . . . Kicked . | . . . . . . . . . . . . . . . . . . . . . . . . . . . Crushed . | . . . . . . . . . . . . . . . . . . . . . . . . . . . Highest Temperature 431 | . . 4 23 120 273 193 94 24 . 183 24 64 138 . 129 170 44 230 . 16 177 211 36 431 316 302 Average Temperature 85 | . . 4 14 50 93 44 52 12 . 71 10 21 53 . 46 55 9 95 . 8 46 44 18 123 88 86 Received Heat Transfer 2416 | . . 51 354 54 114 42 . . . 663 81 97 18 . 18 9 27 12 . 171 30 18 . 306 279 72 Effects 13 | . . . . . . . . . . . . . . . . . . 1 . . . . . 11 1 . Shutdowns 2 | . . . . . . . . . . . . . . . . . . . . . . . . 2 . . Energy Bleed 3 | . . . . . . . . . . . . . . . . . . 1 . . . . . 1 1 . Interference 6 | . . . . . . . . . . . . . . . . . . . . . . . . 6 . . Matter Decay 1 | . . . . . . . . . . . . . . . . . . . . . . . . 1 . . Damage (minor) 1 | . . . . . . . . . . . . . . . . . . . . . . . . 1 . . Siege Activations . | . . . . . . . . . . . . . . . . . . . . . . . . . . . Martial Activations . | . . . . . . . . . . . . . . . . . . . . . . . . . . . Shielding Activations . | . . . . . . . . . . . . . . . . . . . . . . . . . . . Robots Disrupted 2 | . . . . . . . . . . 1 1 . . . . . . . . . . . . . . . Combat Hostiles 2 | . . . . . . . . . . 1 1 . . . . . . . . . . . . . . . Robots Corrupted 4 | . . . . . 2 1 . . . . 1 . . . . . . . . . . . . . . . Combat Hostiles 4 | . . . . . 2 1 . . . . 1 . . . . . . . . . . . . . . . Parts Fried 16 | . . . . 2 4 1 . . . 1 3 . . . 1 4 . . . . . . . . . . Impact Corruptions . | . . . . . . . . . . . . . . . . . . . . . . . . . . . Robots Melted 5 | . . . . . . . . . . . . . . . . . . . . . 1 . . 3 1 . Combat Hostiles 5 | . . . . . . . . . . . . . . . . . . . . . 1 . . 3 1 . Parts Melted 49 | . . . 2 . . . . . . 1 . . . . 2 1 . . . . 28 3 . 5 7 . Heat Transferred 20842 | . . . 775 531 . 650 . . . 900 100 350 250 . 1250 750 150 . . . 6020 833 . 3544 4592 147 Parts Sabotaged . | . . . . . . . . . . . . . . . . . . . . . . . . . . . Parts Stolen . | . . . . . . . . . . . . . . . . . . . . . . . . . . . Parts Stripped . | . . . . . . . . . . . . . . . . . . . . . . . . . . . Power Chain Reactions 4 | . . . . 1 . . . . . . 2 . . . . 1 . . . . . . . . . . Alert | -11 -10 -10 -10 -8 -7 -6 -6 -6 -6 -5 -5 -5 -5 -5 -4 -4 -4 -4 -4 -3 -3 -3 -3 -2 -1 -1 ------- Run | Yrd Mat Min Sub Mat Fac Fac Low Low Dat Pro Fac Upp Upp Zhi Pro Fac Upp Upp War Pro Res Arm Lab Res Acc Com Maximum Alert Level 4 | . . . . . 1 . . . . . . . . . . . . . . . 4 2 . 4 4 2 Low Security (%) 43 | 100 100 100 . 100 79 100 . . . . 100 . . . . 100 . . . . . . . 42 . 22 Level 1 10 | . . . . . 20 . . . . . . . . . . . . . . . . . . 13 . 44 Level 2 20 | . . . . . . . . . . . . . . . . . . . . . . 100 . 21 25 32 Level 3 21 | . . . . . . . . . . . . . . . . . . . . . 89 . . 18 63 . Level 4 3 | . . . . . . . . . . . . . . . . . . . . . 10 . . 4 10 . Level 5 . | . . . . . . . . . . . . . . . . . . . . . . . . . . . High Security . | . . . . . . . . . . . . . . . . . . . . . . . . . . . Max Security . | . . . . . . . . . . . . . . . . . . . . . . . . . . . Peak Influence 1234 | 10 . 40 . 121 245 175 . . . . 197 . . . . 44 . . . . 1234 588 . 1199 1209 570 Initial 950 | . . . . . 34 90 . . . . . . . . . . . . . . 950 551 . . 554 570 Average 414 | . . 11 . 60 79 105 . . . . 66 . . . . 5 . . . . 1046 503 . 380 854 349 Influence Increases 8647 | 10 . 50 195 303 364 226 . 70 . 310 316 100 60 . 205 84 130 25 . 365 1514 141 . 2522 1480 177 Destroy 0b10 Robot/C 4140 | . . 40 160 160 200 120 . 60 . 260 20 80 60 . 160 40 60 20 . 260 340 60 . 1280 680 80 Destroy 0b10 Robot/NC 305 | 10 . . . 20 20 25 . . . . 30 . . . 5 20 5 5 . 5 115 . . 15 25 5 Destroy Leader 990 | . . 10 20 44 54 42 . 10 . 50 12 20 . . 40 12 20 . . 40 90 20 . 324 172 10 Allied During Kill 7 | . . . . . . . . . . . . . . . . . . . . . . . . . . 7 Successful Hack 62 | . . . . 9 . 7 . . . . . . . . . . . . . . 24 4 . . 18 . Disable Machine 405 | . . . . 18 36 9 . . . . 171 . . . . . . . . . . 45 . 72 36 18 Destroy Structure 1163 | . . . . 22 54 23 . . . . 8 . . . . 12 . . . . 30 12 . 666 294 42 Advance Influence 900 | . . . . . . . . . . . . . . . . . . . . . 900 . . . . . Partial Spotted 15 | . . . . . . . . . . . . . . . . . . . . . 15 . . . . . Lose Combat Pursuer 660 | . . . 15 30 . . . . . . 75 . . . . . 45 . . 60 . . . 165 255 15 Influence Decreases 8647 | 10 . 20 225 214 238 375 66 40 30 310 129 275 72 . 205 81 133 25 . 280 385 923 432 1466 1522 1191 Entered New Map 2427 | . . . 18 . 55 125 31 . 30 . . 85 4 . . . 3 . . . 35 663 432 . 502 444 Time Decay 4848 | 10 . 20 172 214 183 240 35 40 . 230 119 150 58 . 145 51 130 25 . 250 220 230 . 1106 780 440 Search Patrol Dispatched 100 | . . . . . . . . . . . . . . . . . . . . . 100 . . . . . Lost Part 1075 | . . . 35 . . 10 . . . 80 10 40 10 . 60 30 . . . 30 20 30 . 220 240 260 Lost Ally 197 | . . . . . . . . . . . . . . . . . . . . . 10 . . 140 . 47 Squads Dispatched 41 | . . . . 1 2 3 . . . . 1 . . . . . . . . . 8 2 . 5 13 6 Investigation 6 | . . . . . . 1 . . . . 1 . . . . . . . . . 2 . . . 2 . Extermination 5 | . . . . . . 1 . . . . . . . . . . . . . . 1 1 . . 1 1 Reinforcement 12 | . . . . 1 1 1 . . . . . . . . . . . . . . 2 . . . 3 4 Assault 4 | . . . . . . . . . . . . . . . . . . . . . . 1 . . 2 1 Garrison 7 | . . . . . 1 . . . . . . . . . . . . . . . 3 . . . 3 . Intercept 7 | . . . . . . . . . . . . . . . . . . . . . . . . 5 2 . Searches Triggered 1 | . . . . . . . . . . . . . . . . . . . . . 1 . . . . . Data Miner Redirects 1 | . . . . . . . . . . . . . . . . . . . . . . 1 . . . . Construction Impeded 4 | . . . . . . 1 . . . . . . . . . . . . . . 2 . . . 1 . Haulers Reinforced . | . . . . . . . . . . . . . . . . . . . . . . . . . . . Active Scanning Responses . | . . . . . . . . . . . . . . . . . . . . . . . . . . . Cargo Convoy Interrupts . | . . . . . . . . . . . . . . . . . . . . . . . . . . . Stealth | -11 -10 -10 -10 -8 -7 -6 -6 -6 -6 -5 -5 -5 -5 -5 -4 -4 -4 -4 -4 -3 -3 -3 -3 -2 -1 -1 --------- Run | Yrd Mat Min Sub Mat Fac Fac Low Low Dat Pro Fac Upp Upp Zhi Pro Fac Upp Upp War Pro Res Arm Lab Res Acc Com Distress Signals 29 | . . . . 2 2 . . . . . . . . . . . . . 1 2 1 . . 8 2 11 Communications Jammed . | . . . . . . . . . . . . . . . . . . . . . . . . . . . Distress Signals . | . . . . . . . . . . . . . . . . . . . . . . . . . . . Times Spotted 344 | . . 2 19 14 15 8 . 3 . 13 12 5 3 . 8 3 4 1 3 27 22 5 1 92 59 25 Peak Tracking Total 15 | . . 2 3 4 5 3 . 3 . 5 6 3 3 . 3 3 3 1 8 5 5 4 1 12 15 8 Tactical Retreats 21 | . . . 1 1 . . . . . . 2 . . . . . 1 . . 3 . . . 9 3 1 Traps | -11 -10 -10 -10 -8 -7 -6 -6 -6 -6 -5 -5 -5 -5 -5 -4 -4 -4 -4 -4 -3 -3 -3 -3 -2 -1 -1 ------- Run | Yrd Mat Min Sub Mat Fac Fac Low Low Dat Pro Fac Upp Upp Zhi Pro Fac Upp Upp War Pro Res Arm Lab Res Acc Com Traps Triggered 8 | . . . 1 . . . . . . . 3 . . . . . . . . . . . . . 3 1 Indirectly . | . . . . . . . . . . . . . . . . . . . . . . . . . . . Trap Hack Attempts . | . . . . . . . . . . . . . . . . . . . . . . . . . . . Triggered . | . . . . . . . . . . . . . . . . . . . . . . . . . . . Disarmed . | . . . . . . . . . . . . . . . . . . . . . . . . . . . Reprogrammed . | . . . . . . . . . . . . . . . . . . . . . . . . . . . Reused . | . . . . . . . . . . . . . . . . . . . . . . . . . . . Traps Extracted . | . . . . . . . . . . . . . . . . . . . . . . . . . . . Installed 9 | . . . 1 . . . . . . . . . . . 8 . . . . . . . . . . . Triggered . | . . . . . . . . . . . . . . . . . . . . . . . . . . . Machines | -11 -10 -10 -10 -8 -7 -6 -6 -6 -6 -5 -5 -5 -5 -5 -4 -4 -4 -4 -4 -3 -3 -3 -3 -2 -1 -1 ---------- Run | Yrd Mat Min Sub Mat Fac Fac Low Low Dat Pro Fac Upp Upp Zhi Pro Fac Upp Upp War Pro Res Arm Lab Res Acc Com Machines Disabled 49 | . . . . 2 4 1 . . . . 19 1 . . . . . . . . . 5 3 8 4 2 Max in Single Turn 11 | . . . . 1 2 1 . . . . 11 1 . . . . . . . . . 2 2 1 1 1 Garrison Access 5 | . . . . . 1 1 . . . . . . . . . . . . . . . . . 2 1 . Machines Repaired . | . . . . . . . . . . . . . . . . . . . . . . . . . . . Machines Dismantled . | . . . . . . . . . . . . . . . . . . . . . . . . . . . Machines Sabotaged . | . . . . . . . . . . . . . . . . . . . . . . . . . . . Overloaded Fab Kills . | . . . . . . . . . . . . . . . . . . . . . . . . . . . Hacking | -11 -10 -10 -10 -8 -7 -6 -6 -6 -6 -5 -5 -5 -5 -5 -4 -4 -4 -4 -4 -3 -3 -3 -3 -2 -1 -1 --------- Run | Yrd Mat Min Sub Mat Fac Fac Low Low Dat Pro Fac Upp Upp Zhi Pro Fac Upp Upp War Pro Res Arm Lab Res Acc Com Machines Accessed 48 | . 1 . . 4 5 4 . . 3 . 3 . . 3 . . . . 3 . 3 2 3 1 11 2 Terminals 25 | . 1 . . 4 3 3 . . . . 3 . . . . . . . . . 1 2 . . 6 2 Fabricators 2 | . . . . . 1 . . . . . . . . . . . . . . . 1 . . . . . Repair Stations . | . . . . . . . . . . . . . . . . . . . . . . . . . . . Recycling Units 2 | . . . . . . . . . . . . . . . . . . . . . . . . . 2 . Scanalyzers 1 | . . . . . . . . . . . . . . . . . . . . . . . . . 1 . Garrison Access 6 | . . . . . 1 1 . . . . . . . . . . . . . . 1 . . 1 2 . Total Hacks 119 | . 1 . . 15 10 11 . . 22 . 5 . . 13 . . . . 5 . 5 4 3 1 21 3 Successful 68 | . 1 . . 8 2 5 . . 22 . 1 . . 13 . . . . 5 . 1 1 3 . 5 1 Failed 51 | . . . . 7 8 6 . . . . 4 . . . . . . . . . 4 3 . 1 16 2 Catastrophic 16 | . . . . 1 . 1 . . . . 3 . . . . . . . . . 2 1 . . 8 . Database Lockouts . | . . . . . . . . . . . . . . . . . . . . . . . . . . . Manual 40 | . . . . 9 5 8 . . . . 4 . . . . . . . 1 . 1 2 1 . 8 1 Terminals 55 | . 1 . . 15 6 9 . . . . 5 . . . . . . . . . 1 4 . . 11 3 Fabricators 3 | . . . . . 2 . . . . . . . . . . . . . . . 1 . . . . . Repair Stations . | . . . . . . . . . . . . . . . . . . . . . . . . . . . Recycling Units 3 | . . . . . . . . . . . . . . . . . . . . . . . . . 3 . Scanalyzers 2 | . . . . . . . . . . . . . . . . . . . . . . . . . 2 . Garrison Access 13 | . . . . . 2 2 . . . . . . . . . . . . . . 3 . . 1 5 . Terminal Hacks 63 | . 1 . . 8 1 4 . . 22 . 1 . . 13 . . . . 5 . . 1 3 . 3 1 Record 18 | . . . . . . 1 . . 6 . . . . 5 . . . . 4 . . . 2 . . . Part Schematic 8 | . . . . . . . . . 8 . . . . . . . . . . . . . . . . . Robot Schematic 5 | . . . . . . . . . 5 . . . . . . . . . . . . . . . . . Robot Analysis 4 | . . . . . . . . . . . . . . 4 . . . . . . . . . . . . Prototype ID Bank 7 | . . . . . . . . . 3 . . . . 4 . . . . . . . . . . . . Open Door 5 | . . . . . . . . . . . . . . . . . . . 1 . . . . . 3 1 Branch Access Points 3 | . 1 . . 1 . 1 . . . . . . . . . . . . . . . . . . . . Alert Level 3 | . . . . 2 . . . . . . 1 . . . . . . . . . . . . . . . Locate Traps 2 | . . . . 1 1 . . . . . . . . . . . . . . . . . . . . . Investigation Status 1 | . . . . 1 . . . . . . . . . . . . . . . . . . . . . . Recall Reinforcements 1 | . . . . . . 1 . . . . . . . . . . . . . . . . . . . . Zone Layout 5 | . . . . 3 . 1 . . . . . . . . . . . . . . . 1 . . . . Release Object 1 | . . . . . . . . . . . . . . . . . . . . . . . 1 . . . Fabricator Hacks 1 | . . . . . . . . . . . . . . . . . . . . . 1 . . . . . Build 1 | . . . . . . . . . . . . . . . . . . . . . 1 . . . . . Repair Station Hacks . | . . . . . . . . . . . . . . . . . . . . . . . . . . . Recycling Unit Hacks 2 | . . . . . . . . . . . . . . . . . . . . . . . . . 2 . Report Inventory 1 | . . . . . . . . . . . . . . . . . . . . . . . . . 1 . Retrieve Components 1 | . . . . . . . . . . . . . . . . . . . . . . . . . 1 . Scanalyzer . | . . . . . . . . . . . . . . . . . . . . . . . . . . . Garrison Access Hacks 2 | . . . . . 1 1 . . . . . . . . . . . . . . . . . . . . Seal Access 2 | . . . . . 1 1 . . . . . . . . . . . . . . . . . . . . Unauthorized Hacks . | . . . . . . . . . . . . . . . . . . . . . . . . . . . Terminals . | . . . . . . . . . . . . . . . . . . . . . . . . . . . Fabricators . | . . . . . . . . . . . . . . . . . . . . . . . . . . . Repair Stations . | . . . . . . . . . . . . . . . . . . . . . . . . . . . Recycling Units . | . . . . . . . . . . . . . . . . . . . . . . . . . . . Scanalyzers . | . . . . . . . . . . . . . . . . . . . . . . . . . . . Garrison Access . | . . . . . . . . . . . . . . . . . . . . . . . . . . . Data Cores Recovered . | . . . . . . . . . . . . . . . . . . . . . . . . . . . Used . | . . . . . . . . . . . . . . . . . . . . . . . . . . . Hacking Detections 27 | . 1 . . 3 5 2 . . . . 3 . . . . . . . . . 2 1 . 1 8 1 Full Trace Events 3 | . . . . . . . . . . . . . . . . . . . . . 1 . . . 2 . Feedback Events 1 | . . . . . . . . . . . . . . . . . . . . . 1 . . . . . Corruption 1 | . . . . . . . . . . . . . . . . . . . . . 1 . . . . . Feedback Blocked . | . . . . . . . . . . . . . . . . . . . . . . . . . . . Robot Schematics Acquired 5 | . . . . . . . . . 5 . . . . . . . . . . . . . . . . . Robots Built 2 | . . . . . . . . . . . . . . . . . . . . . 2 . . . . . Authchips . | . . . . . . . . . . . . . . . . . . . . . . . . . . . Time 50 | . . . . . . . . . . . . . . . . . . . . . 50 . . . . . Total Robot Build Rating 10 | . . . . . . . . . . . . . . . . . . . . . 10 . . . . . Part Schematics Acquired 8 | . . . . . . . . . 8 . . . . . . . . . . . . . . . . . Parts Built . | . . . . . . . . . . . . . . . . . . . . . . . . . . . Authchips . | . . . . . . . . . . . . . . . . . . . . . . . . . . . Time . | . . . . . . . . . . . . . . . . . . . . . . . . . . . Total Part Build Rating . | . . . . . . . . . . . . . . . . . . . . . . . . . . . Part Studies Acquired . | . . . . . . . . . . . . . . . . . . . . . . . . . . . Parts Repaired . | . . . . . . . . . . . . . . . . . . . . . . . . . . . Time . | . . . . . . . . . . . . . . . . . . . . . . . . . . . Parts Recycled . | . . . . . . . . . . . . . . . . . . . . . . . . . . . Recycled Matter . | . . . . . . . . . . . . . . . . . . . . . . . . . . . Retrieved Matter . | . . . . . . . . . . . . . . . . . . . . . . . . . . . Retrieved Components 10 | . . . . . . . . . . . . . . . . . . . . . . . . . 10 . Parts Scanalyzed . | . . . . . . . . . . . . . . . . . . . . . . . . . . . Part Schematics Acquired . | . . . . . . . . . . . . . . . . . . . . . . . . . . . Parts Damaged . | . . . . . . . . . . . . . . . . . . . . . . . . . . . Bothacking | -11 -10 -10 -10 -8 -7 -6 -6 -6 -6 -5 -5 -5 -5 -5 -4 -4 -4 -4 -4 -3 -3 -3 -3 -2 -1 -1 ------------ Run | Yrd Mat Min Sub Mat Fac Fac Low Low Dat Pro Fac Upp Upp Zhi Pro Fac Upp Upp War Pro Res Arm Lab Res Acc Com Used RIF Installer . | . . . . . . . . . . . . . . . . . . . . . . . . . . . Robots Hacked . | . . . . . . . . . . . . . . . . . . . . . . . . . . . Non-combat . | . . . . . . . . . . . . . . . . . . . . . . . . . . . Combat . | . . . . . . . . . . . . . . . . . . . . . . . . . . . Robot Hacks Applied . | . . . . . . . . . . . . . . . . . . . . . . . . . . . Relay Couplers Released 4 | . . . . . . . . . . . . . . . . . . . . . . . . 2 2 . Machine Destruction 4 | . . . . . . . . . . . . . . . . . . . . . . . . 2 2 . Fabnet Peak Effective % . | . . . . . . . . . . . . . . . . . . . . . . . . . . . Robots Rewired . | . . . . . . . . . . . . . . . . . . . . . . . . . . . Allies Hacked . | . . . . . . . . . . . . . . . . . . . . . . . . . . . Hacks Repelled . | . . . . . . . . . . . . . . . . . . . . . . . . . . . Allies | -11 -10 -10 -10 -8 -7 -6 -6 -6 -6 -5 -5 -5 -5 -5 -4 -4 -4 -4 -4 -3 -3 -3 -3 -2 -1 -1 -------- Run | Yrd Mat Min Sub Mat Fac Fac Low Low Dat Pro Fac Upp Upp Zhi Pro Fac Upp Upp War Pro Res Arm Lab Res Acc Com Total Allies 16 | . . . . . . . . . . . . . . . . . . . . . 2 . . 7 . 7 Largest Group 7 | . . . . . . . . . . . . . . . . . . . . . 2 . . 7 . 7 Highest-Rated Group 103 | . . . . . . . . . . . . . . . . . . . . . 40 . . 103 . 101 Highest-Rated Ally 20 | . . . . . . . . . . . . . . . . . . . . . 20 . . 15 . 15 Total Orders . | . . . . . . . . . . . . . . . . . . . . . . . . . . . Ally Attacks 34 | . . . . . . . . . . . . . . . . . . . . . . . . 13 . 21 Total Damage 450 | . . . . . . . . . . . . . . . . . . . . . . . . 94 . 356 Kills 1 | . . . . . . . . . . . . . . . . . . . . . . . . . . 1 Allies Corrupted . | . . . . . . . . . . . . . . . . . . . . . . . . . . . Allies Melted . | . . . . . . . . . . . . . . . . . . . . . . . . . . . Intel | -11 -10 -10 -10 -8 -7 -6 -6 -6 -6 -5 -5 -5 -5 -5 -4 -4 -4 -4 -4 -3 -3 -3 -3 -2 -1 -1 ------- Run | Yrd Mat Min Sub Mat Fac Fac Low Low Dat Pro Fac Upp Upp Zhi Pro Fac Upp Upp War Pro Res Arm Lab Res Acc Com Active Infowar (turns) 12837 | 9 74 61 429 . . 494 363 282 74 609 458 306 425 159 757 230 552 488 641 807 452 477 275 2552 1574 289 Sensors 11277 | . . . . . . 494 363 282 74 609 458 306 425 159 757 230 552 488 641 807 452 477 275 2307 833 288 Structural 5256 | . . . . . . . . . . . . . . . 192 230 552 488 641 807 452 477 207 245 965 . Seismic 573 | 9 74 61 429 . . . . . . . . . . . . . . . . . . . . . . . T.N.C. 1 | . . . . . . . . . . . . . . . . 1 . . . . . . . . . . Cloaking 620 | . . . . . . . . . . . . . . . . . . . . . . . . . 619 1 Robot Analysis Total 4 | . . . . . . . . . . . . . . 4 . . . . . . . . . . . . Derelict Logs Recovered 13 | . . . 2 . . . 1 2 . 2 . 2 1 . 1 . . 2 . . . . . . . . Drone Launches . | . . . . . . . . . . . . . . . . . . . . . . . . . . . Drone Recoveries . | . . . . . . . . . . . . . . . . . . . . . . . . . . . Exploration | -11 -10 -10 -10 -8 -7 -6 -6 -6 -6 -5 -5 -5 -5 -5 -4 -4 -4 -4 -4 -3 -3 -3 -3 -2 -1 -1 ------------- Run | Yrd Mat Min Sub Mat Fac Fac Low Low Dat Pro Fac Upp Upp Zhi Pro Fac Upp Upp War Pro Res Arm Lab Res Acc Com Turns Passed 16198 | 71 74 61 1318 553 514 494 363 282 74 609 458 306 425 162 757 230 552 488 641 807 452 477 275 3198 1574 983 Spaces Moved 10537 | 56 73 20 763 386 422 308 352 277 75 424 305 252 364 152 519 111 261 297 487 356 238 247 203 1910 1114 565 Core 3 | 1 . . . . . . . . . . . . . . . . . . . . . . . . . 2 Treads . | . . . . . . . . . . . . . . . . . . . . . . . . . . . Legs 3584 | . . . 168 . . . . . . . . . . . . . . . 1 91 238 247 203 1910 508 218 Wheels 5999 | 55 73 20 595 386 422 308 352 277 75 424 305 252 364 152 519 111 261 297 486 265 . . . . . . Hover 951 | . . . . . . . . . . . . . . . . . . . . . . . . . 606 345 Flight . | . . . . . . . . . . . . . . . . . . . . . . . . . . . Fastest Speed 40 | 50 90 105 95 100 100 100 100 100 100 100 100 101 101 101 101 115 115 116 116 140 105 108 110 110 40 40 Average Speed 116 | 89 94 105 139 108 100 100 100 100 100 107 108 104 105 101 122 123 168 135 120 149 137 112 110 121 102 108 Slowest Speed 470 | 100 105 105 260 115 100 100 100 100 100 115 130 125 125 101 130 130 200 200 240 176 176 118 110 124 420 470 Overloaded Moves . | . . . . . . . . . . . . . . . . . . . . . . . . . . . Propulsion Burnouts . | . . . . . . . . . . . . . . . . . . . . . . . . . . . Robots Hopped . | . . . . . . . . . . . . . . . . . . . . . . . . . . . Potential Cave-ins 17 | . . . . . . . . . . . . . 3 . . . . . 13 . . . . . 1 . Cave-ins Triggered . | . . . . . . . . . . . . . . . . . . . . . . . . . . . Teleports 2 | . . . . . . . . . . . . . . . . . . . . . . 1 . 1 . . Exploration Rate (%) 40 | 4 18 6 79 42 16 11 44 51 68 60 9 48 49 61 70 2 42 47 76 52 8 18 99 58 31 17 Regions Visited 26 Branch Regions 17 Pre-discovered Areas 7 | . . . 2 . . . . . 1 1 . . . 3 . . . . . . . . . . . . Known Exits Taken 17 | . 1 . . . . 1 . . . . 1 1 1 1 1 1 1 1 1 1 1 1 1 1 1 . Unknown Exits Taken 9 | 1 . 1 1 1 1 . 1 1 1 1 . . . . . . . . . . . . . . . . Scrap Searched 17 | . . . 3 . . . 3 2 . . . 1 3 . 3 . . 2 . . . . . . . . Spaces Dug 84 | . . . . . . 1 1 . . 1 4 . 2 . 1 3 2 . 45 . . 4 . 12 8 . Terrain Destroyed 824 | . . . . 20 54 24 3 19 . 64 5 3 7 . 14 3 7 3 70 57 . 5 6 322 122 16 Melee 2 | . . . . . . . . . . . . . . . . . . . . . . . . . 2 . Projectile 225 | . . . . . . 2 3 1 . 11 5 3 7 . 14 3 6 3 10 25 . 4 6 95 21 6 AOE 595 | . . . . 20 54 22 . 18 . 53 . . . . . . . . 60 32 . . . 227 99 10 Terrain Rammed . | . . . . . . . . . . . . . . . . . . . . . . . . . . . Walls Destroyed . | . . . . . . . . . . . . . . . . . . . . . . . . . . . Machines Disabled . | . . . . . . . . . . . . . . . . . . . . . . . . . . . Actions | -11 -10 -10 -10 -8 -7 -6 -6 -6 -6 -5 -5 -5 -5 -5 -4 -4 -4 -4 -4 -3 -3 -3 -3 -2 -1 -1 --------- Run | Yrd Mat Min Sub Mat Fac Fac Low Low Dat Pro Fac Upp Upp Zhi Pro Fac Upp Upp War Pro Res Arm Lab Res Acc Com Total 13142 | 68 77 50 905 481 474 449 357 279 74 502 403 270 384 160 569 170 334 358 532 562 325 422 236 2488 1363 850 Wait 1275 | . . 24 56 29 4 102 . 1 . 26 52 . 5 . 5 33 49 49 4 169 53 134 3 279 19 179 Move 10511 | 55 72 19 762 385 421 307 351 276 74 423 304 251 363 151 518 110 260 296 486 355 237 246 202 1909 1113 565 Hop . | . . . . . . . . . . . . . . . . . . . . . . . . . . . Pick Up 130 | 3 . 2 7 15 9 4 1 . . 4 6 3 4 3 3 3 1 . 4 1 5 5 2 21 14 10 Fast Attach 176 | 7 2 . 2 8 1 3 . . . 2 1 . . 3 . 6 1 2 9 2 4 3 9 39 48 24 Attach 125 | . . . 9 4 3 4 . . . 7 4 5 2 . 3 1 5 . 3 3 2 7 2 28 23 10 Detach 35 | . . . . 2 . . . . . . . . . . . . . . 4 . . 1 4 10 12 2 Swap 53 | . 1 . 1 5 3 1 1 . . 2 2 . . . . . 1 1 2 1 . 3 . 20 9 . Drop 168 | . 2 . 3 12 9 4 1 . . . 2 . 1 3 . 3 . . 12 1 5 7 4 51 28 20 Fire 637 | 3 . 5 62 21 24 24 3 2 . 38 16 11 9 . 32 14 17 10 8 30 19 16 10 131 93 39 Melee 5 | . . . . . . . . . . . . . . . . . . . . . . . . . 4 1 Ram . | . . . . . . . . . . . . . . . . . . . . . . . . . . . Kick . | . . . . . . . . . . . . . . . . . . . . . . . . . . . Crush . | . . . . . . . . . . . . . . . . . . . . . . . . . . . Escape Stasis 16 | . . . . . . . . . . . 16 . . . . . . . . . . . . . . . Rewire . | . . . . . . . . . . . . . . . . . . . . . . . . . . . Trap 9 | . . . 1 . . . . . . . . . . . 8 . . . . . . . . . . . Miscellaneous 2 | . . . 2 . . . . . . . . . . . . . . . . . . . . . . . Route ------- -11/Scrapyard -10/Materials -10/Mines -10/Subcaves (discovered 2 exits: *Mat x2) -8/Materials -7/Factory -6/Factory (discovered 2 exits: *Low x2) -6/Lower Caves -6/Lower Caves (discovered 2 exits: *Fac / *Dat) -6/Data Miner -5/Proximity Caves -5/Factory (discovered 2 exits: *Upp / Ext) -5/Upper Caves -5/Upper Caves -5/Zhirov -4/Proximity Caves -4/Factory (discovered 2 exits: *Upp x2) -4/Upper Caves -4/Upper Caves -4/Warlord -3/Proximity Caves -3/Research (discovered 2 exits: *Arm / Qua) -3/Armory (discovered 2 exits: Res / *Lab) -3/Lab -2/Research (discovered 2 exits: *Acc x2) -1/Access -1/Command History --------- Turn | Location | Event 2 | -11/Scrapyard | Met Revision 17 31 | -11/Scrapyard | Discovered new exit (range 16) 72 | -11/Scrapyard | Entered Materials 79 | -10/Materials | Identified exit to Mines 146 | -10/Materials | Entered Mines 196 | -10/Mines | Discovered new exit (range 7) 207 | -10/Mines | Entered Subcaves 212 | -10/Subcaves | Learned Materials terminal intel 247 | -10/Subcaves | Shifting Twisted Machinery released Battle Rifle 252 | -10/Subcaves | Shifting Twisted Machinery released Scrap Shield 254 | -10/Subcaves | Learned location of Zion (-7) 254 | -10/Subcaves | Met a Zionite searching for "candidates" 294 | -10/Subcaves | A swath of the cavern ceiling suddenly collapsed 316 | -10/Subcaves | Build established: Mutant 384 | -10/Subcaves | Discovered new exit (range 8) 397 | -10/Subcaves | Shifting Twisted Machinery released Battle Cannon 564 | -10/Subcaves | A swath of the cavern ceiling suddenly collapsed 679 | -10/Subcaves | Lost 3 parts (1n1u1w) 773 | -10/Subcaves | Lost 3 parts (1p1n1w) 1057 | -10/Subcaves | Build established: Scavenger-Mutant 1197 | -10/Subcaves | Core integrity fell below 50% 1198 | -10/Subcaves | Ambushed by Subdweller buried in earth 1269 | -10/Subcaves | Core integrity fell below 20% 1499 | -10/Subcaves | Discovered new exit (range 14) 1525 | -10/Subcaves | Entered Materials 1525 | -8/Materials | Evolved 4 slots: Propulsion x2, Utility x2 1526 | -8/Materials | Loaded intel: 12 terminal locations 1548 | -8/Materials | Build established: Subdweller-Mutant 2033 | -8/Materials | Discovered new exit (range 16) 2078 | -8/Materials | Entered Factory 2078 | -7/Factory | Evolved 2 slots: Power x1, Weapon x1 2365 | -7/Factory | Build established: Gunner 2440 | -7/Factory | Garrison activated, responded to threat 2553 | -7/Factory | Discovered new exit (range 11) 2592 | -7/Factory | Entered another Factory area 2592 | -6/Factory | Evolved 2 slots: Utility x2 2673 | -6/Factory | Identified exit to Lower Caves 3086 | -6/Factory | Entered Lower Caves 3087 | -6/Lower Caves | Encountered a Warlord checkpoint 3147 | -6/Lower Caves | Learned 8 Factory zone layouts 3302 | -6/Lower Caves | Spotted B-75 Beast 3442 | -6/Lower Caves | Discovered new exit (range 8) 3449 | -6/Lower Caves | Entered another Lower Caves area 3450 | -6/Lower Caves | Encountered a Warlord checkpoint 3462 | -6/Lower Caves | Learned Factory emergency access door positions 3497 | -6/Lower Caves | Discovered new exit (range 7) 3640 | -6/Lower Caves | Learned 4 Factory zone layouts 3721 | -6/Lower Caves | Discovered new exit (range 9) 3731 | -6/Lower Caves | Entered Data Miner 3731 | -6/Data Miner | Discovered new exit (range 6) 3750 | -6/Data Miner | Met Data Miner 3768 | -6/Data Miner | Learned location of Section 7 (-2) 3768 | -6/Data Miner | Acquired the access code to Warlord's prototype stash 3783 | -6/Data Miner | Received God Mode back door access code from Data Miner 3805 | -6/Data Miner | Entered Proximity Caves 3805 | -5/Proximity Caves | Spotted B-75 Beast 3857 | -5/Proximity Caves | Destroyed B-75 Beast 3879 | -5/Proximity Caves | Lost 6 parts (1p2u3w) 4107 | -5/Proximity Caves | Build established: Mutant 4305 | -5/Proximity Caves | Lost 5 parts (1p1u3w) 4328 | -5/Proximity Caves | Learned location of 1 exit from Upper Caves 4384 | -5/Proximity Caves | Discovered new exit (range 10) 4414 | -5/Proximity Caves | Entered Factory 4414 | -5/Factory | Evolved 2 slots: Utility x2 4415 | -5/Factory | Identified exit to Upper Caves 4415 | -5/Factory | Identified exit to Extension 4603 | -5/Factory | Build established: Scavenger-Mutant 4872 | -5/Factory | Entered Upper Caves 4873 | -5/Upper Caves | Identified exit to Upper Caves 4924 | -5/Upper Caves | Learned location of 1 exit from Factory 4951 | -5/Upper Caves | Build established: Scavenger-Tank 5030 | -5/Upper Caves | Learned Factory stockpile data 5114 | -5/Upper Caves | Attacked by a delusional Derelict stockpiling parts 5178 | -5/Upper Caves | Entered another Upper Caves area 5275 | -5/Upper Caves | Attracted the attention of an 0b10 checkpoint 5488 | -5/Upper Caves | Learned 12 Factory zone layouts 5598 | -5/Upper Caves | Discovered new exit (range 6) 5602 | -5/Upper Caves | Identified exit to Zhirov 5603 | -5/Upper Caves | Entered Zhirov 5603 | -5/Zhirov | Discovered new exit (range 3) 5622 | -5/Zhirov | Met Zhirov 5642 | -5/Zhirov | Learned location of Quarantine (-3) 5642 | -5/Zhirov | Learned location of Testing (-2) 5642 | -5/Zhirov | Learned location of Command (-1) 5659 | -5/Zhirov | Zhirov requested help retrieving the SGEMP Prototype 5680 | -5/Zhirov | Found Alien Artifact 5680 | -5/Zhirov | Identified Integrated Reactor 5680 | -5/Zhirov | Installed Integrated Reactor, increased core energy generation (+10) 5695 | -5/Zhirov | Found Alien Artifact 5762 | -5/Zhirov | Identified exit to Proximity Caves 5765 | -5/Zhirov | Entered Proximity Caves 5817 | -4/Proximity Caves | Lost 3 parts (1n1u1w) 6085 | -4/Proximity Caves | Learned Research terminal intel 6096 | -4/Proximity Caves | Build established: Skirmisher 6112 | -4/Proximity Caves | Spotted B-86 Titan 6135 | -4/Proximity Caves | Destroyed B-86 Titan 6355 | -4/Proximity Caves | Lost 3 parts (1n1u1w) 6506 | -4/Proximity Caves | Discovered new exit (range 6) 6520 | -4/Proximity Caves | Identified exit to Factory 6522 | -4/Proximity Caves | Entered Factory 6522 | -4/Factory | Evolved 2 slots: Utility x1, Weapon x1 6523 | -4/Factory | Identified exit to Upper Caves 6533 | -4/Factory | Discovered exit to Upper Caves (range 4) 6668 | -4/Factory | Spotted B-86 Titan 6752 | -4/Factory | Entered Upper Caves 6753 | -4/Upper Caves | Lost 3 parts (2u1w) 6900 | -4/Upper Caves | Spotted B-86 Titan 6928 | -4/Upper Caves | Destroyed B-86 Titan 6957 | -4/Upper Caves | Lost 5 parts (1p1n2u1w) 7204 | -4/Upper Caves | Discovered new exit (range 14) 7300 | -4/Upper Caves | Identified exit to Upper Caves 7304 | -4/Upper Caves | Entered another Upper Caves area 7391 | -4/Upper Caves | Learned 8 Research zone layouts 7549 | -4/Upper Caves | Learned Research terminal intel 7616 | -4/Upper Caves | Build established: Scavenger-Skirmisher 7767 | -4/Upper Caves | Discovered new exit (range 14) 7791 | -4/Upper Caves | Identified exit to Warlord 7792 | -4/Upper Caves | Entered Warlord 7832 | -4/Warlord | System corruption cleaned by Quarantine Array 7893 | -4/Warlord | Met Warlord 7918 | -4/Warlord | Warlord's base attacked by MAIN.C 7999 | -4/Warlord | Found Prototype Energy Cannon 7999 | -4/Warlord | Identified Vortex Driver 8001 | -4/Warlord | Found Vortex Driver 8006 | -4/Warlord | Found Prototype Energy Gun 8006 | -4/Warlord | Identified Vortex Rifle 8012 | -4/Warlord | Found Prototype Energy Gun 8012 | -4/Warlord | Identified Vortex Shotgun 8019 | -4/Warlord | Found Vortex Rifle 8077 | -4/Warlord | Found Prototype Energy Gun 8110 | -4/Warlord | Found Prototype Special Weapon 8111 | -4/Warlord | Identified RU-N14's Throwing Claymores v3 8114 | -4/Warlord | Found RU-N14's Throwing Claymores v3 8256 | -4/Warlord | Opened Warlord's prototype stash 8268 | -4/Warlord | Warlord forces counterattacked 8275 | -4/Warlord | Found Prototype Processor 8275 | -4/Warlord | Identified Exp. Targeting Computer 8284 | -4/Warlord | Found Prototype Reactor 8284 | -4/Warlord | Identified Vortex Chain Reactor 8418 | -4/Warlord | Spotted B-90 Cyclops 8421 | -4/Warlord | Discovered new exit (range 9) 8431 | -4/Warlord | Identified exit to Proximity Caves 8433 | -4/Warlord | Entered Proximity Caves 8435 | -3/Proximity Caves | Spotter reported a threat 8436 | -3/Proximity Caves | Spotter reported a threat 8459 | -3/Proximity Caves | Lost 6 allies 8474 | -3/Proximity Caves | Unaware initiated a cargo recovery operation 8562 | -3/Proximity Caves | Spotter reported a threat 8877 | -3/Proximity Caves | Spotter reported a threat 8957 | -3/Proximity Caves | Spotter reported a threat 8957 | -3/Proximity Caves | Spotter reported a threat 9040 | -3/Proximity Caves | Spotter reported a threat 9098 | -3/Proximity Caves | Spotter reported a threat 9180 | -3/Proximity Caves | Attracted the attention of an 0b10 checkpoint 9210 | -3/Proximity Caves | Spotter reported a threat 9221 | -3/Proximity Caves | Discovered new exit (range 9) 9238 | -3/Proximity Caves | Identified exit to Research 9239 | -3/Proximity Caves | Build established: Skirmisher 9240 | -3/Proximity Caves | Entered Research 9240 | -3/Research | Evolved 2 slots: Propulsion x1, Weapon x1 9241 | -3/Research | Identified exit to Quarantine 9241 | -3/Research | Identified exit to Armory 9242 | -3/Research | Loaded intel: 24 terminal locations 9253 | -3/Research | Identified Plasma Storm 9308 | -3/Research | Garrison activated, responded to threat 9404 | -3/Research | Fabricated R-10 Processor (x2) 9490 | -3/Research | Search patrols dispatched 9692 | -3/Research | Entered Armory 9942 | -3/Armory | First assault squad dispatched 9972 | -3/Armory | Incoming assault squad redirected 10041 | -3/Armory | Lost 3 parts (1p1u1w) 10091 | -3/Armory | Discovered new exit (range 20) 10117 | -3/Armory | Identified Transdimensional Reconstructor 10117 | -3/Armory | Warped through subspace to slip node 10117 | -3/Armory | Discovered new exit (range 1) 10117 | -3/Armory | Identified exit to Lab 10169 | -3/Armory | Entered Lab 10169 | -3/Lab | Discovered new exit (range 10) 10177 | -3/Lab | Identified exit to Research 10184 | -3/Lab | Unable to decrypt terminal 10184 | -3/Lab | Opened the door to a hidden lab 10184 | -3/Lab | Detected by scanners 10185 | -3/Lab | Gained access to the hidden lab's interior 10190 | -3/Lab | Confronted by A5 10203 | -3/Lab | Destroyed A5 10213 | -3/Lab | Found Prototype Protection 10213 | -3/Lab | Identified Med. Regenerative Plating 10227 | -3/Lab | Unable to decrypt terminal 10237 | -3/Lab | Found Alien Artifact 10237 | -3/Lab | Identified Core Reset Matrix 10237 | -3/Lab | Used Core Reset Matrix 10241 | -3/Lab | Sensed 3 artifacts in vicinity 10255 | -3/Lab | Found Integrated Mediator 10255 | -3/Lab | Installed Integrated Mediator, increased core attachment efficiency 10264 | -3/Lab | Found Core Expander 10264 | -3/Lab | Installed Core Expander, added new Utility slot 10277 | -3/Lab | Found Transdimensional Reconstructor 10303 | -3/Lab | Found Prototype Protection 10303 | -3/Lab | Identified Hvy. Regenerative Plating 10307 | -3/Lab | Found Prototype Energy Cannon 10307 | -3/Lab | Identified Potential Cannon 10311 | -3/Lab | Found Prototype Energy Gun 10311 | -3/Lab | Identified Hyp. EM Gauss Rifle 10334 | -3/Lab | Found Prototype Special Weapon 10351 | -3/Lab | Unable to decrypt terminal 10376 | -3/Lab | Unable to decrypt terminal 10378 | -3/Lab | Found LC Capacitor 10432 | -3/Lab | Discovered exit to Research (range 10) 10444 | -3/Lab | Entered Research 10444 | -2/Research | Warlord forces began assault on 0b10 10444 | -2/Research | Evolved 2 slots: Propulsion x1, Utility x1 10483 | -2/Research | Met up with Warlord 10554 | -2/Research | Research machine network offline 10608 | -2/Research | Spotted B-90 Cyclops 10754 | -2/Research | Discovered new exit (range 15) 10790 | -2/Research | Identified exit to Access 10823 | -2/Research | Found Prototype Launcher 10823 | -2/Research | Identified Ragnarok Missile Launcher 10831 | -2/Research | Found Ragnarok Missile Launcher 10936 | -2/Research | Build established: Alien-Skirmisher 10999 | -2/Research | Borebot progress halted 11043 | -2/Research | Discovered exit to Access (range 15) 11098 | -2/Research | Borebot progress halted 11389 | -2/Research | Spotted Striker 11412 | -2/Research | Spotted Striker 11445 | -2/Research | Warlord invited to help at Command 11445 | -2/Research | Given Cave Seal Controls access code 11619 | -2/Research | Met DD-05H 11656 | -2/Research | Spotted Executioner 11660 | -2/Research | Destroyed Executioner 11760 | -2/Research | Spotted Striker 11763 | -2/Research | Spotted Striker 11764 | -2/Research | Destroyed Striker 11802 | -2/Research | Destroyed Striker 11867 | -2/Research | Spotted B-90 Cyclops 11877 | -2/Research | Spotted Tracker 11877 | -2/Research | Spotted Tracker 11884 | -2/Research | Destroyed Tracker 11894 | -2/Research | Destroyed Tracker 11976 | -2/Research | Destroyed B-90 Cyclops 12010 | -2/Research | Spotted Striker 12026 | -2/Research | Destroyed Striker 12109 | -2/Research | Build established: Alien-Gunner 12150 | -2/Research | Spotted Executioner 12150 | -2/Research | Destroyed Executioner 12329 | -2/Research | Spotted Tracker 12331 | -2/Research | Spotted Tracker 12337 | -2/Research | Destroyed Tracker 12348 | -2/Research | Destroyed Tracker 12373 | -2/Research | Spotted Combat Programmer 12375 | -2/Research | Spotted Combat Programmer 12389 | -2/Research | Destroyed Combat Programmer 12414 | -2/Research | Destroyed Combat Programmer 12609 | -2/Research | Lost 5 allies 12638 | -2/Research | Found Ragnarok Missile Launcher 12687 | -2/Research | Spotted B-90 Cyclops 12691 | -2/Research | Destroyed B-90 Cyclops 12826 | -2/Research | Spotted Striker 12862 | -2/Research | Destroyed Striker 12926 | -2/Research | Spotted Executioner 12926 | -2/Research | Spotted Executioner 12930 | -2/Research | Destroyed Executioner 13159 | -2/Research | Spotted Striker 13162 | -2/Research | System corruption reached 10% 13165 | -2/Research | Build established: Alien-Skirmisher 13256 | -2/Research | Spotted Striker 13257 | -2/Research | Spotted Striker 13262 | -2/Research | Destroyed Striker 13266 | -2/Research | Destroyed Striker 13321 | -2/Research | Spotted Striker 13321 | -2/Research | Spotted Executioner 13324 | -2/Research | Destroyed Striker 13334 | -2/Research | Destroyed Executioner 13347 | -2/Research | Spotted Striker 13355 | -2/Research | Destroyed Striker 13390 | -2/Research | Lost 4 parts (2p1n1u) 13400 | -2/Research | Destroyed Executioner 13410 | -2/Research | Spotted Executioner 13413 | -2/Research | Spotted Striker 13418 | -2/Research | Destroyed Executioner 13429 | -2/Research | Lost 3 parts (2u1w) 13478 | -2/Research | Spotted Executioner 13478 | -2/Research | Spotted Executioner 13481 | -2/Research | Spotted Tracker 13482 | -2/Research | Spotted Tracker 13486 | -2/Research | Core integrity fell below 50% 13487 | -2/Research | Warped through subspace 13511 | -2/Research | Destroyed Tracker 13517 | -2/Research | Emitted hypermatrix ping 13522 | -2/Research | Assembled emerged from beneath the floor 13559 | -2/Research | Lost 3 allies 13617 | -2/Research | Core integrity fell below 20% 13638 | -2/Research | Lost 9 parts (1p3u5w) 13642 | -2/Research | Entered Access 13642 | -1/Access | Evolved 2 slots: Utility x2 14035 | -1/Access | Found Unknown Protection 14035 | -1/Access | Identified Hvy. Reflective Plating 14038 | -1/Access | Found Hvy. Reflective Plating 14040 | -1/Access | Found Hvy. Reflective Plating 14067 | -1/Access | Intercept squad dispatched 14088 | -1/Access | Spotted Tracker 14088 | -1/Access | Spotted Tracker 14097 | -1/Access | Destroyed Tracker 14111 | -1/Access | Destroyed Tracker 14129 | -1/Access | Spotted Combat Programmer 14130 | -1/Access | Spotted Combat Programmer 14142 | -1/Access | First assault squad dispatched 14145 | -1/Access | Destroyed Combat Programmer 14149 | -1/Access | System corruption reached 10% 14149 | -1/Access | Destroyed Combat Programmer 14384 | -1/Access | Garrison activated, responded to threat 14427 | -1/Access | Lost 3 parts (2n1u) 14534 | -1/Access | Intercept squad dispatched 14548 | -1/Access | Spotted Tracker 14551 | -1/Access | Spotted Tracker 14562 | -1/Access | Destroyed Tracker 14565 | -1/Access | Destroyed Tracker 14591 | -1/Access | Spotted Combat Programmer 14593 | -1/Access | Spotted Combat Programmer 14624 | -1/Access | Destroyed Combat Programmer 14648 | -1/Access | Destroyed Combat Programmer 14671 | -1/Access | Lost 14 parts (2p6n3u3w) 14937 | -1/Access | Build established: Alien-Mutant 15210 | -1/Access | Discovered new exit (range 7) 15215 | -1/Access | Identified exit to Command 15216 | -1/Access | Entered Command 15242 | -1/Command | Disengaged cave seal 15242 | -1/Command | Derelicts emerged from the dark tunnel 15242 | -1/Command | Welcomed Warlord to Command 15275 | -1/Command | Spotted B-99 Colossus 15370 | -1/Command | Found Unknown Protection 15466 | -1/Command | First assault squad dispatched 15485 | -1/Command | Warlord commented on Warlord statues 15495 | -1/Command | Spotted Combat Programmer 15495 | -1/Command | Spotted M Guard 15496 | -1/Command | Spotted M Guard 15499 | -1/Command | Spotted Combat Programmer 15510 | -1/Command | Destroyed Combat Programmer 15518 | -1/Command | Identified Hvy. Reflective Plating 15556 | -1/Command | Found Prototype Launcher 15556 | -1/Command | Identified Adv. Micro-nuke Launcher 15560 | -1/Command | Found Prototype Device 15560 | -1/Command | Identified Thermal Barrier 15562 | -1/Command | Found Prototype Device 15562 | -1/Command | Identified AEGIS Remote Shield 15566 | -1/Command | All MAIN.C guards destroyed 15574 | -1/Command | Lost 9 parts (1p6u2w) 15575 | -1/Command | Found Prototype Reactor 15575 | -1/Command | Identified Zero-point Reactor 15996 | -1/Command | Build established: Scavenger-Gunner 16051 | -1/Command | Met MAIN.C 16053 | -1/Command | Core integrity fell below 50% 16056 | -1/Command | Warlord shut down involuntarily 16056 | -1/Command | 0b10 Conduit disabled 16089 | -1/Command | System corruption reached 30% 16107 | -1/Command | Destroyed MAIN.C Shell 16110 | -1/Command | MAIN.C activated Command garrisons 16176 | -1/Command | Emitted hypermatrix ping 16181 | -1/Command | Assembled emerged from beneath the floor 16185 | -1/Command | Core integrity fell below 20% 16199 | -1/Command | Destroyed by S-43 Plague with Heavy Machine Gun Last Messages --------------- 16189_ Acquired 19 matter. 16189_ S-43 Plague destroyed. 16190_ Slug penetrates MAIN.C. 16191_ as-02539 destroyed. 16191_ Slug penetrates as-49136. 16191_ as-49136 destroyed. 16191_ as-08720 destroyed. 16192_ Penetrated by Slug. 16193_ Slug penetrates S-43 Plague. 16194_ as-74286 knocked back. 16194_ Penetrated by Slug. 16194_ Acquired Unknown Reactor. 16194_ Identified Quantum Reactor. 16195_ Penetrated by Slug. 16197_ as-74286 destroyed. 16197_ Penetrated by Slug. 16197_ Slug penetrates Reinforced Barrier. 16198_ Knocked back. 16198_ Penetrated by Slug. 16198_ Linear Gravjet destroyed. Map ----- +----------------------------------------------------+ | ?????????????????????????????????????????????????? | | ?????????????????????????????????????????????????? | | ?????????????????????????????????????????????????? | | ?????????????????????????????????????????????????? | | ?????????????????????????????????????????????????? | | ?????????????????????????????????????????????????? | | ?????????????????????????????????????????????????? | | ?????????????????????????????????????????????????? | | ?????????????????????????????????????????????????? | | ?????????????????????????????????????????????????? | | ?????????????????????????????????????????????????? | | ?????????????????????????????????????????????????? | | ?????????????????????????????????????????????????? | | ?????????????????????????????????????????????????? | | ?????????????????????????????????????????????????? | | ?????#######################?????????????????????? | | ?????#""""""" """" #?????????????????????? | | ?????#"" "" % #?????????????????????? | | ?????#""""" ####################### | | ?????#""""""""" == ; # | | ?????#" " /" # | | ?????#" """" h /% # | | ?????#"" """ % h################### # | | ?????# " """ s #?????????????????# # | | ?????# " % %%*% !%#?????????????????# # | | ?????# "%= M % % s *@ #?????????????????# T | | ?????#" ss! ! #?????????????????#///# | | ?????#"" ="#?????????????????# | | ?????# * #?????????????????# | | ?????# % #?????????????????# | | ?????# % #?????????????????# | | ?????" #?????????????????# | | ?????" % " " #?????????????????# | | ?????" % " #?????????????????##### | | ?????#% " #?????????????????????? | | ?????# % """"#?????????????????????? | | ?????# " #?????????????????????? | | ?????#######################?????????????????????? | | ?????????????????????????????????????????????????? | | ?????????????????????????????????????????????????? | | ?????????????????????????????????????????????????? | | ?????????????????????????????????????????????????? | | ?????????????????????????????????????????????????? | | ?????????????????????????????????????????????????? | | ?????????????????????????????????????????????????? | | ?????????????????????????????????????????????????? | | ?????????????????????????????????????????????????? | | ?????????????????????????????????????????????????? | | ?????????????????????????????????????????????????? | | ?????????????????????????????????????????????????? | +----------------------------------------------------+ Best States ------------- Heat Dissipation 128 Coolant Potential 120 Energy Generation 65 Energy Capacity 1410 Matter Stores 550 Matter Capacity 550 Sight Range 16 Robot Scan Range 16 Terrain Scan Density 210 Cloak Strength 2 Power Amplification 30 Armor Coverage 975 Resistance: KI 50 Resistance: TH 45 Resistance: EX 20 Resistance: EM 35 Resistance: I 20 Resistance: S 20 Resistance: P 20 Power Shielding 90 Propulsion Shielding 33 Weapon Shielding 90 Phase Shifting 10 Evasion (%) 70 Targeting Accuracy 20 Offensive Hacking 10 Defensive Hacking 14 Item Schematics ----------------- None Robot Schematics ------------------ None Fabricated ------------ R-10 Processor | x2 | -3/Research | Preloaded Repaired ---------- Nothing Studied --------- None Alien Tech Used ----------------- Integrated Reactor Transdimensional Reconstructor Core Reset Matrix Integrated Mediator Core Expander LC Capacitor Achievements -------------- Anti-science Crusade Giant Slayer Challenges ------------ None Game ------ Seed MissileSpreadWall Manual? 0 Play Time 02:33:10 Cumulative 244.8 hours Start 2025.12.22 @ 21:50:23 End 2025.12.23 @ 22:24:21 Sessions 9 Manual Loads 0 Difficulty Adventurer Special Mode None Game No. 188 Rogue 10 Adventurer 178 Explorer 0 Win Type - Total 16 Types 7/0/6/3/0/0/0/0/0/0 Lore% 74 Gallery% 72 Achievement% 56 Wizard Run 0 Options --------- Layout 1 ASCII 0 Keyboard 0 Movement Mouse Keybinds 0 Fullscreen 1 Font 24/Smallcaps Map View 50x35 Zoom Use 0% Tactical HUD 1 Map Filters NONE Filters NONE Steam 1 RUN: f2508722-6e65-4a98-a1b5-c8203128b231